lending/lending_fUSD_20250429
["ID","MTS","AMOUNT","RATE_DAILY","PERIOD"]
[359355666,1745949090859,-470.0,0.00031232,2]
[359355667,1745949090869,-625.99,0.00031232,2]
[359355668,1745949090879,-568.66,0.00031232,2]
[359355669,1745949090889,-902.33,0.00031232,2]
[359355670,1745949090899,-486.67,0.00031232,2]
[359355671,1745949090909,-847.38,0.00031232,2]
[359355672,1745949090919,-682.29,0.00031232,2]
[359355673,1745949090934,-3039.36,0.00031232,2]
[359355674,1745949090948,-474.23,0.00031232,2]
[359355675,1745949090958,-470.0,0.00031232,2]
[359355676,1745949090968,-470.0,0.00031232,2]
[359355677,1745949090977,-613.1,0.00031232,2]
[359355678,1745949090986,-683.49,0.00031232,2]
[359355679,1745949090996,-470.0,0.00031232,2]
[359355680,1745949091007,-537.75,0.00031232,2]
[359355681,1745949091017,-539.83,0.00031232,2]
[359355682,1745949091026,-595.72,0.00031232,2]
[359355683,1745949091036,-470.0,0.00031232,2]
[359355684,1745949091050,-6080.07,0.00031232,2]
[359355685,1745949091060,-481.77,0.00031232,2]
[359355686,1745949091070,-520.98,0.00031232,2]
[359355687,1745949091080,-622.98,0.00031232,2]
[359355688,1745949091090,-869.31,0.00031232,2]
[359355689,1745949091099,-704.81,0.00031232,2]
[359355690,1745949091108,-12545.32,0.00031232,2]
[359355691,1745949091118,-492.66,0.00031232,2]
[359355692,1745949091127,-783.52,0.00031232,2]
[359355693,1745949091138,-557.05,0.00031232,2]
[359355694,1745949091147,-470.0,0.00031232,2]
[359355695,1745949091157,-470.0,0.00031232,2]
[359355696,1745949091166,-531.21,0.00031232,2]
[359355697,1745949091175,-470.0,0.00031232,2]
[359355698,1745949091185,-636.94,0.00031232,2]
[359355699,1745949091194,-488.6,0.00031232,2]
[359355700,1745949091204,-1144.88,0.00031232,2]
[359355701,1745949091214,-432.09804272,0.00031232,2]
[359355702,1745949091223,-624.4,0.00031232,2]
[359355703,1745949091232,-650.35,0.00031232,2]
[359355704,1745949091241,-673.11,0.00031232,2]
[359355705,1745949091251,-470.0,0.00031232,2]
[359355706,1745949091268,-472.75,0.00031232,2]
[359355707,1745949091278,-470.0,0.00031232,2]
[359355708,1745949091287,-566.63065275,0.00031232,2]
[359355709,1745949091296,-6481.15,0.00031232,2]
[359355710,1745949091306,-505.43,0.00031232,2]
[359355711,1745949091316,-433.82766284,0.00031232,2]
[359355712,1745949091326,-470.0,0.00031232,2]
[359355713,1745949091335,-470.0,0.00031232,2]
[359355714,1745949091344,-61295.82,0.00031232,2]
[359355715,1745949091354,-482.94,0.00031232,2]
[359355716,1745949091364,-606.96,0.00031232,2]
[359355717,1745949091373,-470.0,0.00031232,2]
[359355718,1745949091383,-470.0,0.00031232,2]
[359355719,1745949091393,-773.47,0.00031232,2]
[359355720,1745949091402,-586.56,0.00031232,2]
[359355721,1745949091412,-1001.6,0.00031232,2]
[359355722,1745949091422,-470.0,0.00031232,2]
[359355723,1745949091431,-151.0,0.00031232,7]
[359355724,1745949091441,-470.0,0.00031232,2]
[359355725,1745949091450,-470.0,0.00031232,2]
[359355726,1745949091460,-7239.44,0.00031232,2]
[359355727,1745949091469,-470.0,0.00031232,2]
[359355728,1745949091478,-610.17,0.00031232,2]
[359355729,1745949091488,-6805.43,0.00031232,2]
[359355730,1745949091498,-2927.0,0.00031232,2]
[359355731,1745949091507,-244.47795437,0.00031232,2]
[359355732,1745949091516,-500.0,0.00031233,2]
[359355733,1745949091526,-166.03,0.00031336,2]
[359355734,1745949091535,-200.0,0.00031361,2]
[359355735,1745949091545,-152.0,0.00031412,5]
[359355736,1745949091555,-51455.88,0.00031421,2]
[359355737,1745949091564,-151.0,0.00031421,7]
[359355738,1745949091574,-519.67,0.00031506,2]
[359355739,1745949091583,-498.52,0.00031506,2]
[359355740,1745949091593,-470.0,0.00031506,2]
[359355741,1745949091602,-515.86506212,0.00031506,2]
[359355742,1745949091612,-470.0,0.00031506,2]
[359355743,1745949091622,-537.97,0.00031506,2]
[359355744,1745949091631,-470.0,0.00031506,2]
[359355745,1745949091641,-510.04719777,0.00031506,2]
[359355746,1745949091650,-470.0,0.00031506,2]
[359355747,1745949091661,-1113.6,0.00031506,2]
[359355748,1745949091670,-611.04,0.00031506,2]
[359355749,1745949091680,-470.0,0.00031506,2]
[359355750,1745949091689,-631.2,0.00031506,2]
[359355751,1745949091698,-564.79,0.00031506,2]
[359355752,1745949091708,-668.5,0.00031506,2]
[359355753,1745949091717,-826.62,0.00031506,2]
[359355754,1745949091727,-470.0,0.00031506,2]
[359355755,1745949091737,-470.0,0.00031506,2]
[359355756,1745949091746,-800.64,0.00031506,2]
[359355757,1745949091755,-470.0,0.00031506,2]
[359355758,1745949091765,-470.0,0.00031506,2]
[359355759,1745949091774,-502.1,0.00031506,2]
[359355760,1745949091783,-2160.32,0.00031506,2]
[359355761,1745949091792,-1312.33,0.00031506,2]
[359355762,1745949091802,-548.44,0.00031506,2]
[359355763,1745949091811,-243.6564,0.00031506,7]
[359355764,1745949091820,-2312.86,0.00031506,2]
[359355765,1745949091829,-470.0,0.00031506,2]
[359355766,1745949091839,-470.0,0.00031506,2]
[359355767,1745949091848,-484.25,0.00031506,2]
[359355768,1745949091857,-470.0,0.00031506,2]
[359355769,1745949091867,-470.0,0.00031506,2]
[359355770,1745949091876,-470.0,0.00031506,2]
[359355771,1745949091885,-470.0,0.00031506,2]
[359355772,1745949091895,-470.0,0.00031506,2]
[359355773,1745949091905,-5959.741954,0.00031506,2]
[359355774,1745949091914,-470.0,0.00031506,2]
[359355775,1745949091923,-470.0,0.00031506,2]
[359355776,1745949091932,-470.0,0.00031506,2]
[359355777,1745949091942,-659.334822,0.00031506,2]
[359355778,1745949091951,-657.74,0.00031506,2]
[359355779,1745949091960,-486.33,0.00031506,2]
[359355780,1745949091969,-470.0,0.00031506,2]
[359355781,1745949091980,-437.515976,0.00031506,2]
[359355782,1745949091989,-470.0,0.00031506,2]
[359355783,1745949091998,-542.45,0.00031506,2]
[359355784,1745949092008,-656.69,0.00031506,2]
[359355785,1745949092017,-552.91,0.00031506,2]
[359355786,1745949092027,-470.0,0.00031506,2]
[359355787,1745949092036,-610.66,0.00031506,2]
[359355788,1745949092048,-470.0,0.00031506,2]
[359355789,1745949092058,-558.47,0.00031506,2]
[359355790,1745949092067,-471.31,0.00031506,2]
[359355791,1745949092076,-1049.74,0.00031506,2]
[359355792,1745949092086,-566.36,0.00031506,2]
[359355793,1745949092097,-470.0,0.00031506,2]
[359355794,1745949092106,-534.78,0.00031506,2]
[359355795,1745949092116,-563.33,0.00031506,2]
[359355796,1745949092126,-372.483872,0.00031506,2]
[359355797,1745949092137,-470.0,0.00031506,2]
[359355798,1745949092147,-557.82,0.00031506,2]
[359355799,1745949092156,-1537.22,0.00031506,2]
[359355800,1745949092165,-496.59,0.00031506,2]
[359355801,1745949092175,-652.05,0.00031506,2]
[359355802,1745949092184,-470.0,0.00031506,2]
[359355803,1745949092194,-1146.41,0.00031506,2]
[359355804,1745949092203,-579.71,0.00031506,2]
[359355805,1745949092212,-470.0,0.00031506,2]
[359355806,1745949092223,-470.0,0.00031506,2]
[359355807,1745949092232,-470.0,0.00031506,2]
[359355808,1745949092242,-704.42,0.00031506,2]
[359355809,1745949092251,-470.0,0.00031506,2]
[359355810,1745949092260,-470.0,0.00031506,2]
[359355811,1745949092270,-470.0,0.00031506,2]
[359355812,1745949092279,-470.0,0.00031506,2]
[359355813,1745949092288,-625.71,0.00031506,2]
[359355814,1745949092297,-2279.31,0.00031506,2]
[359355815,1745949092307,-470.0,0.00031506,2]
[359355816,1745949092316,-544.48,0.00031506,2]
[359355817,1745949092326,-904.77,0.00031506,2]
[359355818,1745949092336,-1788.53,0.00031506,2]
[359355819,1745949092345,-510.11,0.00031506,2]
[359355820,1745949092354,-3823.23,0.00031506,2]
[359355821,1745949092365,-2052.75,0.00031506,2]
[359355822,1745949092374,-685.59,0.00031506,2]
[359355823,1745949092383,-470.0,0.00031506,2]
[359355824,1745949092393,-470.0,0.00031506,2]
[359355825,1745949092402,-539.63,0.00031506,2]
[359355826,1745949092411,-2047.07,0.00031506,2]
[359355827,1745949092421,-470.0,0.00031506,2]
[359355828,1745949092430,-1581.86,0.00031506,2]
[359355829,1745949092440,-470.0,0.00031506,2]
[359355830,1745949092449,-703.7,0.00031506,2]
[359355831,1745949092459,-194.45657059,0.00031506,2]
[359355832,1745949092468,-2163.53,0.00031506,2]
[359355833,1745949092478,-515.86,0.00031506,2]
[359355834,1745949092487,-1020.49,0.00031506,2]
[359355835,1745949092497,-716.59,0.00031506,2]
[359355836,1745949092507,-383.36071149,0.00031506,2]
[359355837,1745949092517,-490.92,0.00031506,2]
[359355838,1745949092527,-470.0,0.00031506,2]
[359355839,1745949092537,-2329.69,0.00031506,2]
[359355840,1745949092547,-470.0,0.00031506,2]
[359355841,1745949092557,-765.88,0.00031506,2]
[359355842,1745949092566,-470.0,0.00031506,2]
[359355843,1745949092576,-470.0,0.00031506,2]
[359355844,1745949092587,-568.19,0.00031506,2]
[359355845,1745949092597,-1203.42,0.00031506,2]
[359355846,1745949092607,-645.19,0.00031506,2]
[359355847,1745949092617,-970.99,0.00031506,2]
[359355848,1745949092627,-901.28,0.00031506,2]
[359355849,1745949092638,-701.64,0.00031506,2]
[359355850,1745949092648,-470.0,0.00031506,2]
[359355851,1745949092659,-1092.53,0.00031506,2]
[359355852,1745949092668,-470.0,0.00031506,2]
[359355853,1745949092678,-470.0,0.00031506,2]
[359355854,1745949092689,-470.0,0.00031506,2]
[359355855,1745949092699,-903.38,0.00031506,2]
[359355856,1745949092709,-470.0,0.00031506,2]
[359355857,1745949092720,-1736.45,0.00031506,2]
[359355858,1745949092729,-1436.64,0.00031506,2]
[359355859,1745949092739,-559.81,0.00031506,2]
[359355860,1745949092749,-2108.64,0.00031506,2]
[359355861,1745949092759,-960.7,0.00031506,2]
[359355862,1745949092768,-2353.36,0.00031506,2]
[359355863,1745949092778,-470.0,0.00031506,2]
[359355864,1745949092788,-745.59,0.00031506,2]
[359355865,1745949092799,-545.5,0.00031506,2]
[359355866,1745949092809,-549.47,0.00031506,2]
[359355867,1745949092973,-586.45,0.00031506,2]
[359355868,1745949092984,-470.0,0.00031506,2]
[359355869,1745949092993,-770.83,0.00031506,2]
[359355870,1745949093003,-797.04,0.00031506,2]
[359355871,1745949093013,-543.81,0.00031506,2]
[359355872,1745949093023,-885.12,0.00031506,2]
[359355873,1745949093033,-470.0,0.00031506,2]
[359355874,1745949093044,-562.35,0.00031506,2]
[359355875,1745949093056,-476.24,0.00031506,2]
[359355876,1745949093066,-880.52,0.00031506,2]
[359355877,1745949093076,-915.71,0.00031506,2]
[359355878,1745949093086,-470.0,0.00031506,2]
[359355879,1745949093097,-820.44,0.00031506,2]
[359355880,1745949093107,-470.0,0.00031506,2]
[359355881,1745949093117,-470.0,0.00031506,2]
[359355882,1745949093128,-470.0,0.00031506,2]
[359355883,1745949093140,-625.99,0.00031506,2]
[359355884,1745949093151,-568.66,0.00031506,2]
[359355885,1745949093162,-902.33,0.00031506,2]
[359355886,1745949093173,-486.67,0.00031506,2]
[359355887,1745949093184,-847.38,0.00031506,2]
[359355888,1745949093195,-682.29,0.00031506,2]
[359355889,1745949093206,-3039.36,0.00031506,2]
[359355890,1745949093217,-474.23,0.00031506,2]
[359355891,1745949093227,-470.0,0.00031506,2]
[359355892,1745949093239,-470.0,0.00031506,2]
[359355893,1745949093249,-613.1,0.00031506,2]
[359355894,1745949093259,-683.49,0.00031506,2]
[359355895,1745949093269,-470.0,0.00031506,2]
[359355896,1745949093281,-537.75,0.00031506,2]
[359355897,1745949093292,-539.83,0.00031506,2]
[359355898,1745949093302,-595.72,0.00031506,2]
[359355899,1745949093313,-470.0,0.00031506,2]
[359355900,1745949093324,-6080.07,0.00031506,2]
[359355901,1745949093334,-481.77,0.00031506,2]
[359355902,1745949093345,-622.98,0.00031506,2]
[359355903,1745949093356,-520.98,0.00031506,2]
[359355904,1745949093367,-869.31,0.00031506,2]
[359355905,1745949093377,-704.81,0.00031506,2]
[359355906,1745949093386,-12545.32,0.00031506,2]
[359355907,1745949093397,-492.66,0.00031506,2]
[359355908,1745949093408,-783.52,0.00031506,2]
[359355909,1745949093418,-557.05,0.00031506,2]
[359355910,1745949093428,-470.0,0.00031506,2]
[359355911,1745949093438,-470.0,0.00031506,2]
[359355912,1745949093448,-531.21,0.00031506,2]
[359355913,1745949093458,-470.0,0.00031506,2]
[359355914,1745949093468,-636.94,0.00031506,2]
[359355915,1745949093478,-488.6,0.00031506,2]
[359355916,1745949093489,-1144.88,0.00031506,2]
[359355917,1745949093498,-624.4,0.00031506,2]
[359355918,1745949093508,-650.35,0.00031506,2]
[359355919,1745949093518,-673.11,0.00031506,2]
[359355920,1745949093528,-470.0,0.00031506,2]
[359355921,1745949093538,-472.75,0.00031506,2]
[359355922,1745949093548,-470.0,0.00031506,2]
[359355923,1745949093559,-6481.15,0.00031506,2]
[359355924,1745949093570,-505.43,0.00031506,2]
[359355925,1745949093581,-470.0,0.00031506,2]
[359355926,1745949093592,-470.0,0.00031506,2]
[359355927,1745949093602,-61295.82,0.00031506,2]
[359355928,1745949093612,-482.94,0.00031506,2]
[359355929,1745949093622,-606.96,0.00031506,2]
[359355930,1745949093632,-470.0,0.00031506,2]
[359355931,1745949093643,-470.0,0.00031506,2]
[359355932,1745949093653,-773.47,0.00031506,2]
[359355933,1745949093662,-586.56,0.00031506,2]
[359355934,1745949093673,-1001.6,0.00031506,2]
[359355935,1745949093683,-470.0,0.00031506,2]
[359355936,1745949093693,-470.0,0.00031506,2]
[359355937,1745949093703,-470.0,0.00031506,2]
[359355938,1745949093713,-7239.44,0.00031506,2]
[359355939,1745949093723,-470.0,0.00031506,2]
[359355940,1745949093733,-610.17,0.00031506,2]
[359355941,1745949093743,-6805.43,0.00031506,2]
[359355942,1745949093753,-2927.0,0.00031506,2]
[359355943,1745949093763,-500.0,0.00031507,2]
[359355944,1745949093773,-440.4,0.00031507,2]
[359355945,1745949093782,-269.7,0.000316,2]
[359355946,1745949093792,-1183.48,0.000316,2]
[359355947,1745949093802,-2235.34,0.000316,2]
[359355948,1745949093812,-333.59446545,0.00031637,2]
[359355949,1745949093822,-211.25339233,0.00031646,3]
[359355950,1745949093833,-239.84119403,0.00031647,2]
[359355951,1745949093843,-51455.88,0.00031695,2]
[359355952,1745949093853,-151.0,0.00031695,7]
[359355953,1745949093864,-339.5,0.00031726,2]
[359355954,1745949093874,-323.95,0.00031726,2]
[359355955,1745949093884,-2082.1308888,0.00031728,10]
[359355956,1745949093894,-71592.2068425,0.00031736,2]
[359355957,1745949093905,-7426.7801598,0.00031758,2]
[359355958,1745949093915,-236.9,0.00031779,2]
[359355959,1745949093925,-519.67,0.0003178,2]
[359355960,1745949093935,-498.52,0.0003178,2]
[359355961,1745949093944,-470.0,0.0003178,2]
[359355962,1745949093954,-470.0,0.0003178,2]
[359355963,1745949093964,-537.97,0.0003178,2]
[359355964,1745949093973,-497.22326777,0.0003178,2]
[359355965,1745949093983,-470.0,0.0003178,2]
[359355966,1745949093994,-1113.6,0.0003178,2]
[359355967,1745949094003,-611.04,0.0003178,2]
[359355968,1745949094013,-470.0,0.0003178,2]
[359355969,1745949094022,-631.2,0.0003178,2]
[359355970,1745949094031,-564.79,0.0003178,2]
[359355971,1745949094041,-668.5,0.0003178,2]
[359355972,1745949094054,-826.62,0.0003178,2]
[359355973,1745949094065,-494.2479572,0.0003178,2]
[359355974,1745949094075,-470.0,0.0003178,2]
[359355975,1745949094085,-800.64,0.0003178,2]
[359355976,1745949094094,-470.0,0.0003178,2]
[359355977,1745949094105,-588.9572727,0.0003178,2]
[359355978,1745949094117,-502.1,0.0003178,2]
[359355979,1745949094128,-2160.32,0.0003178,2]
[359355980,1745949094140,-1312.33,0.0003178,2]
[359355981,1745949094150,-548.44,0.0003178,2]
[359355982,1745949094160,-2312.86,0.0003178,2]
[359355983,1745949094170,-470.0,0.0003178,2]
[359355984,1745949094180,-470.0,0.0003178,2]
[359355985,1745949094190,-484.25,0.0003178,2]
[359355986,1745949094199,-422.74,0.0003178,2]
[359355987,1745949094208,-470.0,0.0003178,2]
[359355988,1745949094219,-470.0,0.0003178,2]
[359355989,1745949094229,-470.0,0.0003178,2]
[359355990,1745949094238,-470.0,0.0003178,2]
[359355991,1745949094248,-5959.741954,0.0003178,2]
[359355992,1745949094259,-470.0,0.0003178,2]
[359355993,1745949094269,-470.0,0.0003178,2]
[359355994,1745949094279,-470.0,0.0003178,2]
[359355995,1745949094289,-659.334822,0.0003178,2]
[359355996,1745949094304,-657.74,0.0003178,2]
[359355997,1745949094314,-486.33,0.0003178,2]
[359355998,1745949094324,-470.0,0.0003178,2]
[359355999,1745949094333,-437.515976,0.0003178,2]
[359356000,1745949094343,-470.0,0.0003178,2]
[359356001,1745949094352,-542.45,0.0003178,2]
[359356002,1745949094362,-656.69,0.0003178,2]
[359356003,1745949094371,-552.91,0.0003178,2]
[359356004,1745949094381,-470.0,0.0003178,2]
[359356005,1745949094392,-610.66,0.0003178,2]
[359356006,1745949094404,-470.0,0.0003178,2]
[359356007,1745949094414,-558.47,0.0003178,2]
[359356008,1745949094424,-471.31,0.0003178,2]
[359356009,1745949094434,-1049.74,0.0003178,2]
[359356010,1745949094446,-566.36,0.0003178,2]
[359356011,1745949094456,-470.0,0.0003178,2]
[359356012,1745949094466,-534.78,0.0003178,2]
[359356013,1745949094476,-563.33,0.0003178,2]
[359356014,1745949094486,-372.483872,0.0003178,2]
[359356015,1745949094497,-470.0,0.0003178,2]
[359356016,1745949094507,-557.82,0.0003178,2]
[359356017,1745949094517,-1537.22,0.0003178,2]
[359356018,1745949094526,-496.59,0.0003178,2]
[359356019,1745949094535,-151.0,0.0003178,7]
[359356020,1745949094545,-652.05,0.0003178,2]
[359356021,1745949094554,-335.70273731,0.0003178,2]
[359356022,1745949094563,-1146.41,0.0003178,2]
[359356023,1745949094573,-579.71,0.0003178,2]
[359356024,1745949094584,-470.0,0.0003178,2]
[359356025,1745949094593,-588.51941836,0.0003178,2]
[359356026,1745949094603,-470.0,0.0003178,2]
[359356027,1745949094612,-704.42,0.0003178,2]
[359356028,1745949094622,-470.0,0.0003178,2]
[359356029,1745949094632,-470.0,0.0003178,2]
[359356030,1745949094642,-470.0,0.0003178,2]
[359356031,1745949094652,-470.0,0.0003178,2]
[359356032,1745949094663,-625.71,0.0003178,2]
[359356033,1745949094672,-2279.31,0.0003178,2]
[359356034,1745949094682,-470.0,0.0003178,2]
[359356035,1745949094691,-544.48,0.0003178,2]
[359356036,1745949094701,-904.77,0.0003178,2]
[359356037,1745949094712,-1788.53,0.0003178,2]
[359356038,1745949094721,-510.11,0.0003178,2]
[359356039,1745949094731,-3823.23,0.0003178,2]
[359356040,1745949094740,-2052.75,0.0003178,2]
[359356041,1745949094749,-685.59,0.0003178,2]
[359356042,1745949094759,-470.0,0.0003178,2]
[359356043,1745949094768,-470.0,0.0003178,2]
[359356044,1745949094778,-539.63,0.0003178,2]
[359356045,1745949094787,-2047.07,0.0003178,2]
[359356046,1745949094800,-470.0,0.0003178,2]
[359356047,1745949094810,-1581.86,0.0003178,2]
[359356048,1745949094820,-470.0,0.0003178,2]
[359356049,1745949094830,-703.7,0.0003178,2]
[359356050,1745949094840,-2163.53,0.0003178,2]
[359356051,1745949094849,-515.86,0.0003178,2]
[359356052,1745949094859,-1020.49,0.0003178,2]
[359356053,1745949094869,-716.59,0.0003178,2]
[359356054,1745949094878,-490.92,0.0003178,2]
[359356055,1745949094888,-470.0,0.0003178,2]
[359356056,1745949094898,-2329.69,0.0003178,2]
[359356057,1745949094908,-470.0,0.0003178,2]
[359356058,1745949094917,-765.88,0.0003178,2]
[359356059,1745949094927,-470.0,0.0003178,2]
[359356060,1745949094937,-470.0,0.0003178,2]
[359356061,1745949094946,-151.0,0.0003178,7]
[359356062,1745949094955,-568.19,0.0003178,2]
[359356063,1745949094964,-1203.42,0.0003178,2]
[359356064,1745949094974,-970.99,0.0003178,2]
[359356065,1745949094983,-645.19,0.0003178,2]
[359356066,1745949094992,-901.28,0.0003178,2]
[359356067,1745949095001,-701.64,0.0003178,2]
[359356068,1745949095011,-470.0,0.0003178,2]
[359356069,1745949095020,-1092.53,0.0003178,2]
[359356070,1745949095030,-470.0,0.0003178,2]
[359356071,1745949095039,-470.0,0.0003178,2]
[359356072,1745949095054,-470.0,0.0003178,2]
[359356073,1745949095063,-903.38,0.0003178,2]
[359356074,1745949095073,-470.0,0.0003178,2]
[359356075,1745949095082,-1736.45,0.0003178,2]
[359356076,1745949095091,-1436.64,0.0003178,2]
[359356077,1745949095101,-559.81,0.0003178,2]
[359356078,1745949095112,-2108.64,0.0003178,2]
[359356079,1745949095121,-960.7,0.0003178,2]
[359356080,1745949095130,-2353.36,0.0003178,2]
[359356081,1745949095140,-470.0,0.0003178,2]
[359356082,1745949095150,-745.59,0.0003178,2]
[359356083,1745949095160,-545.5,0.0003178,2]
[359356084,1745949095170,-549.47,0.0003178,2]
[359356085,1745949095179,-586.45,0.0003178,2]
[359356086,1745949095190,-770.83,0.0003178,2]
[359356087,1745949095199,-470.0,0.0003178,2]
[359356088,1745949095209,-797.04,0.0003178,2]
[359356089,1745949095219,-543.81,0.0003178,2]
[359356090,1745949095229,-885.12,0.0003178,2]
[359356091,1745949095238,-470.0,0.0003178,2]
[359356092,1745949095248,-562.35,0.0003178,2]
[359356093,1745949095258,-476.24,0.0003178,2]
[359356094,1745949095268,-880.52,0.0003178,2]
[359356095,1745949095277,-915.71,0.0003178,2]
[359356096,1745949095287,-470.0,0.0003178,2]
[359356097,1745949095297,-820.44,0.0003178,2]
[359356098,1745949095306,-470.0,0.0003178,2]
[359356099,1745949095316,-470.0,0.0003178,2]
[359356100,1745949095326,-470.0,0.0003178,2]
[359356101,1745949095335,-625.99,0.0003178,2]
[359356102,1745949095345,-568.66,0.0003178,2]
[359356103,1745949095355,-902.33,0.0003178,2]
[359356104,1745949095365,-486.67,0.0003178,2]
[359356105,1745949095374,-847.38,0.0003178,2]
[359356106,1745949095384,-682.29,0.0003178,2]
[359356107,1745949095397,-3039.36,0.0003178,2]
[359356108,1745949095410,-474.23,0.0003178,2]
[359356109,1745949095419,-470.0,0.0003178,2]
[359356110,1745949095429,-470.0,0.0003178,2]
[359356111,1745949095439,-613.1,0.0003178,2]
[359356112,1745949095449,-683.49,0.0003178,2]
[359356113,1745949095460,-470.0,0.0003178,2]
[359356114,1745949095469,-537.75,0.0003178,2]
[359356115,1745949095478,-539.83,0.0003178,2]
[359356116,1745949095488,-595.72,0.0003178,2]
[359356117,1745949095498,-470.0,0.0003178,2]
[359356118,1745949095508,-6080.07,0.0003178,2]
[359356119,1745949095517,-481.77,0.0003178,2]
[359356120,1745949095528,-622.98,0.0003178,2]
[359356121,1745949095538,-520.98,0.0003178,2]
[359356122,1745949095547,-869.31,0.0003178,2]
[359356123,1745949095557,-704.81,0.0003178,2]
[359356124,1745949095567,-12545.32,0.0003178,2]
[359356125,1745949095576,-492.66,0.0003178,2]
[359356126,1745949095586,-783.52,0.0003178,2]
[359356127,1745949095595,-557.05,0.0003178,2]
[359356128,1745949095605,-470.0,0.0003178,2]
[359356129,1745949095615,-470.0,0.0003178,2]
[359356130,1745949095625,-531.21,0.0003178,2]
[359356131,1745949095634,-470.0,0.0003178,2]
[359356132,1745949095645,-636.94,0.0003178,2]
[359356133,1745949095654,-488.6,0.0003178,2]
[359356134,1745949095664,-1144.88,0.0003178,2]
[359356135,1745949095673,-624.4,0.0003178,2]
[359356136,1745949095683,-650.35,0.0003178,2]
[359356137,1745949095693,-673.11,0.0003178,2]
[359356138,1745949095702,-470.0,0.0003178,2]
[359356139,1745949095712,-472.75,0.0003178,2]
[359356140,1745949095721,-470.0,0.0003178,2]
[359356141,1745949095731,-6481.15,0.0003178,2]
[359356142,1745949095741,-505.43,0.0003178,2]
[359356143,1745949095755,-470.0,0.0003178,2]
[359356144,1745949095765,-470.0,0.0003178,2]
[359356145,1745949095775,-61295.82,0.0003178,2]
[359356146,1745949095784,-482.94,0.0003178,2]
[359356147,1745949095794,-606.96,0.0003178,2]
[359356148,1745949095803,-470.0,0.0003178,2]
[359356149,1745949095813,-470.0,0.0003178,2]
[359356150,1745949095823,-773.47,0.0003178,2]
[359356151,1745949095832,-586.56,0.0003178,2]
[359356152,1745949095841,-1001.6,0.0003178,2]
[359356153,1745949095850,-470.0,0.0003178,2]
[359356154,1745949095860,-470.0,0.0003178,2]
[359356155,1745949095870,-470.0,0.0003178,2]
[359356156,1745949095880,-7239.44,0.0003178,2]
[359356157,1745949095890,-470.0,0.0003178,2]
[359356158,1745949095899,-610.17,0.0003178,2]
[359356159,1745949095909,-6805.43,0.0003178,2]
[359356160,1745949095919,-2927.0,0.0003178,2]
[359356161,1745949095929,-500.0,0.00031781,2]
[359356162,1745949095939,-437.0,0.00031867,5]
[359356163,1745949095948,-1495.57,0.000319,2]
[359356164,1745949095958,-1313.2417344,0.00031947,2]
[359356165,1745949095967,-51455.88,0.00031969,2]